fUST/lending_fUST_20250430
["ID","MTS","AMOUNT","RATE_DAILY","PERIOD"]
[359389143,1745972959288,-165.83,0.000351,7]
[359389144,1745972959308,-999.50024988,0.00035102,2]
[359389145,1745972959328,-1000.0,0.00035244,5]
[359389146,1745972959354,-600.0,0.00035281,5]
[359389147,1745972959389,-314.57182114,0.000357,2]
[359389148,1745972959408,-384.50663708,0.000357,5]
[359389149,1745972959428,-403.0,0.00035722,2]
[359389150,1745972959448,-229.35,0.000358,2]
[359389151,1745972959468,-487.25727818,0.00035875,2]
[359389173,1745973007661,3446.04739521,0.00034,2]
[359389174,1745973007681,4256.00788335,0.00034,2]
[359389175,1745973007701,4340.8770436,0.00034,2]
[359389198,1745973032015,-10187.03975976,0.00034,2]
[359389205,1745973032071,-12770.02791808,0.00034,2]
[359389207,1745973032083,-421.90041544,0.00036199,2]
[359389209,1745973032092,-160.0,0.0003623,2]
[359389210,1745973032102,-500.0,0.0003646,5]
[359389212,1745973032112,-2200.0,0.00036831,7]
[359389213,1745973032122,-1500.0,0.00036888,5]
[359389214,1745973032132,-347.0,0.00037088,2]
[359389215,1745973032141,-287.0,0.00037088,3]
[359389216,1745973032150,-500.0,0.00037322,7]
[359389217,1745973032160,-500.0,0.0003742,7]
[359389218,1745973032173,-500.0,0.00037428,2]
[359389220,1745973032182,-500.0,0.00037428,15]
[359389222,1745973032192,-234.03357061,0.00037428,15]
[359389223,1745973032202,-500.0,0.00037428,15]
[359389224,1745973032214,-500.0,0.00037428,2]
[359389225,1745973032225,-500.0,0.00037428,15]
[359389226,1745973032236,-500.0,0.00037428,2]
[359389227,1745973032247,-162.89484045,0.00037428,15]
[359389228,1745973032256,-500.0,0.00037428,2]
[359389229,1745973032267,-500.0,0.00037428,2]
[359389230,1745973032276,-500.0,0.00037428,15]
[359389231,1745973032286,-500.0,0.00037428,2]
[359389232,1745973032296,-500.0,0.00037428,2]
[359389233,1745973032305,-500.0,0.00037428,2]
[359389234,1745973032315,-500.0,0.00037428,2]
[359389235,1745973032325,-500.0,0.00037428,2]
[359389236,1745973032334,-500.0,0.00037428,2]
[359389237,1745973032344,-500.0,0.00037428,2]
[359389238,1745973032355,-500.0,0.00037428,2]
[359389239,1745973032364,-500.0,0.00037428,2]
[359389240,1745973032374,-500.0,0.00037428,2]
[359389241,1745973032383,-500.0,0.00037428,2]
[359389242,1745973032393,-500.0,0.00037428,2]
[359389243,1745973032402,-531.50162786,0.00037428,2]
[359389244,1745973032412,-500.0,0.00037428,2]
[359389245,1745973032422,-814.31731291,0.00037429,7]
[359389246,1745973032435,-151.00611932,0.00037459,2]
[359389247,1745973032445,-500.0,0.00037729,5]
[359389248,1745973032454,-500.25309697,0.00037779,7]
[359389249,1745973032464,-165.83,0.000378,7]
[359389250,1745973032474,-500.0,0.0003791,7]
[359389251,1745973032483,-500.0,0.00037971,7]
[359389252,1745973032493,-500.0,0.00037987,7]
[359389253,1745973032502,-500.0,0.00038031,7]
[359389254,1745973032511,-184.573315,0.00038104,2]
[359389255,1745973032521,-5000.0,0.00038155,2]
[359389256,1745973032530,-397.4097288,0.00038175,5]
[359389257,1745973032541,-500.0,0.00038175,5]
[359389258,1745973032551,-150.0,0.00038175,5]
[359389259,1745973032560,-500.0,0.00038175,5]
[359389260,1745973032570,-500.0,0.00038177,7]
[359389261,1745973032581,-875.3934897,0.00038229,4]
[359389262,1745973032592,-428.46384678,0.00038247,7]
[359389263,1745973032603,-500.0,0.00038262,7]
[359389264,1745973032613,-840.73483787,0.00038262,7]
[359389265,1745973032623,-200.0,0.00038285,14]
[359389266,1745973032634,-200.0,0.00038297,14]
[359389267,1745973032647,-203.14243374,0.00038297,14]
[359389268,1745973032659,-500.0,0.00038311,7]
[359389269,1745973032670,-500.0,0.00038333,7]
[359389270,1745973032679,-2000.0,0.00038356,120]
[359389271,1745973032689,-2000.0,0.00038356,120]
[359389272,1745973032698,-2000.0,0.00038356,120]
[359389273,1745973032708,-2000.0,0.00038356,120]
[359389274,1745973032719,-2000.0,0.00038356,120]
[359389275,1745973032729,-510.65918369,0.00038356,120]
[359389276,1745973032739,-172.1618646,0.00038356,2]
[359389277,1745973032749,-500.0,0.00038486,7]
[359389278,1745973032759,-2000.0,0.00038532,5]
[359389279,1745973032769,-500.0,0.00038668,7]
[359389280,1745973032779,-151.0061193,0.000388,2]
[359389281,1745973032790,-243.10775152,0.00038839,3]
[359389282,1745973032799,-160.0,0.00038849,3]
[359389283,1745973032809,-840.73483787,0.00038849,3]
[359389284,1745973032819,-500.0,0.00038911,7]
[359389285,1745973032828,-500.0,0.00038949,7]
[359389286,1745973032838,-500.0,0.00038969,7]
[359389287,1745973032848,-500.0,0.00038973,5]
[359389288,1745973032858,-500.0,0.00038991,7]
[359389289,1745973032867,-1282.65551978,0.00039031,2]
[359389290,1745973032877,-500.0,0.00039031,7]
[359389291,1745973032886,-500.0,0.00039051,7]
[359389292,1745973032895,-1000.0,0.00039117,5]
[359389293,1745973032905,-1000.0,0.00039117,5]
[359389294,1745973032914,-500.0,0.00039163,7]
[359389295,1745973032923,-500.0,0.00039183,7]
[359389296,1745973032933,-500.0,0.00039215,7]
[359389297,1745973032942,-1000.0,0.00039263,5]
[359389298,1745973032951,-567.31306695,0.00039294,7]
[359389299,1745973032961,-165.83,0.000393,7]
[359389300,1745973032971,-500.0,0.00039304,7]
[359389301,1745973032980,-500.0,0.00039305,7]
[359389302,1745973032989,-500.0,0.00039351,7]
[359389303,1745973032999,-306.0,0.00039425,30]
[359389304,1745973033008,-153.0,0.00039425,30]
[359389305,1745973033017,-157.1038495,0.00039425,30]
[359389306,1745973033027,-153.0,0.00039425,30]
[359389307,1745973033037,-153.0,0.00039425,30]
[359389308,1745973033047,-153.0,0.00039425,30]
[359389309,1745973033056,-600.0,0.00039446,7]
[359389310,1745973033066,-151.0,0.00039695,5]
[359389311,1745973033076,-306.0,0.00039699,30]
[359389312,1745973033085,-4668.08629324,0.00039845,2]
[359389313,1745973033265,-960.70052036,0.00039845,2]
[359389314,1745973033278,-41750.92210121,0.00039845,2]
[359389315,1745973033288,-500.0,0.00039846,5]
[359389316,1745973033297,-802.53980077,0.0004,14]
[359389317,1745973033307,-160.0,0.00040129,2]
[359389318,1745973033317,-160.0,0.0004013,2]
[359389319,1745973033326,-326.81282924,0.00040139,2]
[359389320,1745973033336,-151.0061193,0.0004014,2]
[359389321,1745973033346,-177.55452675,0.0004014,7]
[359389322,1745973033356,-49218.25624491,0.00040141,3]
[359389323,1745973033372,-472.155,0.00040141,3]
[359389362,1745973038242,-160.0,0.00040129,2]
[359389364,1745973038251,-2074.03357061,0.00040135,2]
[359389366,1745973038263,-9030.41462907,0.00040135,2]
[359389369,1745973038349,-610.2180464,0.00040135,2]
[359389370,1745973038362,-864.60258016,0.00040135,2]
[359389371,1745973038371,-1540.71828322,0.00040141,3]
[359389372,1745973038382,-23817.16744659,0.00040141,3]
[359389373,1745973038391,-160.0,0.00040141,2]
[359389374,1745973038400,-160.0,0.00040141,2]
[359389375,1745973038410,-840.73483787,0.00040141,2]
[359389376,1745973038419,-207.4,0.00040146,28]
[359389377,1745973038428,-215.0738,0.00040146,28]
[359389378,1745973038437,-223.60989723,0.00040146,28]
[359389379,1745973038447,-2500.0,0.00040175,5]
[359389380,1745973038456,-2000.0,0.000402,26]
[359389381,1745973038466,-682.8461635,0.00040213,120]
[359389382,1745973038475,-160.0,0.0004022,3]
[359389383,1745973038484,-1944.86201216,0.0004023,3]
[359389384,1745973038494,-402.47244167,0.00040239,31]
[359389385,1745973038503,-160.0,0.0004024,3]
[359389386,1745973038513,-743710.56440552,0.0004024,14]
[359389387,1745973038522,-107132.83603992,0.0004024,14]
[359389388,1745973038531,-151.0,0.0004024,14]
[359389389,1745973038542,-151.0,0.0004024,14]
[359389390,1745973038552,-156.662656,0.0004024,14]
[359389391,1745973038561,-151.0,0.0004024,14]
[359389392,1745973038570,-156.662656,0.0004024,14]
[359389393,1745973038579,-151.0,0.0004024,14]
[359389394,1745973038589,-151.0,0.0004024,14]
[359389395,1745973038598,-570.615232,0.0004024,14]
[359389396,1745973038607,-570.615232,0.0004024,14]
[359389397,1745973038616,-163.541342,0.0004024,14]
[359389398,1745973038626,-163.541342,0.0004024,14]
[359389399,1745973038635,-151.0,0.0004024,14]
[359389400,1745973038644,-151.0,0.0004024,14]
[359389401,1745973038654,-151.0,0.0004024,14]
[359389402,1745973038663,-151.0,0.0004024,14]
[359389403,1745973038672,-151.0,0.0004024,14]
[359389404,1745973038681,-151.0,0.0004024,14]
[359389405,1745973038691,-151.0,0.0004024,14]
[359389406,1745973038700,-151.0,0.0004024,14]
[359389407,1745973038709,-195.695944,0.0004024,14]
[359389408,1745973038719,-151.0,0.0004024,14]
[359389409,1745973038728,-151.0,0.0004024,14]
[359389410,1745973038737,-500.0,0.00040242,15]
[359389411,1745973038747,-3655.95555533,0.00040246,3]
[359389412,1745973038756,-153.0,0.00040247,30]
[359389413,1745973038765,-153.0,0.00040247,30]
[359389414,1745973038774,-153.0,0.00040247,30]
[359389415,1745973038784,-153.0,0.00040247,30]
[359389416,1745973038793,-151.0,0.00040247,14]
[359389417,1745973038802,-151.0,0.00040247,14]
[359389418,1745973038812,-151.0,0.00040247,14]
[359389419,1745973038821,-151.0,0.00040247,14]
[359389420,1745973038831,-151.0,0.00040247,14]
[359389421,1745973038840,-151.0,0.00040247,14]
[359389422,1745973038850,-151.0,0.00040247,14]
[359389423,1745973038858,-300.15938147,0.00040247,14]
[359389424,1745973038868,-151.44473924,0.00040247,14]
[359389425,1745973038877,-151.0,0.00040247,14]
[359389426,1745973038886,-151.0,0.00040247,14]
[359389427,1745973038895,-160.0,0.00040253,7]
[359389428,1745973038904,-212.027348,0.00040253,14]
[359389429,1745973038914,-151.0,0.00040253,14]
[359389430,1745973038923,-151.0,0.00040253,14]
[359389431,1745973038934,-151.0,0.00040253,14]
[359389432,1745973038943,-151.0,0.00040253,14]
[359389433,1745973038953,-151.0,0.00040253,14]
[359389434,1745973038964,-151.0,0.00040253,14]
[359389435,1745973038975,-151.0,0.00040253,14]
[359389436,1745973038985,-151.0,0.00040253,14]
[359389437,1745973038996,-151.0,0.00040253,14]
[359389438,1745973039006,-217.70854,0.00040253,14]
[359389439,1745973039015,-588.61533858,0.00040273,5]
[359389440,1745973039025,-251.60289308,0.00040273,5]
[359389441,1745973039035,-501.41990258,0.00040273,5]
[359389442,1745973039045,-500.0,0.00040273,5]
[359389443,1745973039055,-150.0,0.00040273,5]
[359389444,1745973039064,-150.0,0.00040273,5]
[359389445,1745973039073,-151.0,0.00040274,14]
[359389446,1745973039083,-151.0,0.00040274,14]
[359389447,1745973039093,-151.0,0.00040274,14]
[359389448,1745973039102,-151.0,0.00040274,14]
[359389449,1745973039113,-206.0,0.000403,30]
[359389450,1745973039123,-160.0,0.000403,62]
[359389451,1745973039133,-27871.06,0.000403,30]
[359389452,1745973039142,-1259.85,0.000403,30]
[359389453,1745973039151,-5959.73,0.000403,30]
[359389454,1745973039161,-150.0,0.000403,120]
[359389455,1745973039171,-198.0,0.00040302,14]
[359389456,1745973039180,-198.0,0.00040302,14]
[359389457,1745973039189,-198.0,0.00040302,14]
[359389458,1745973039202,-198.0,0.00040302,14]
[359389459,1745973039211,-151.0,0.00040313,14]
[359389460,1745973039220,-151.0,0.00040313,14]
[359389461,1745973039229,-151.0,0.00040313,14]
[359389462,1745973039238,-151.0,0.00040313,14]
[359389463,1745973039248,-151.0,0.00040313,14]
[359389464,1745973039257,-151.0,0.00040313,14]
[359389465,1745973039266,-153.198348,0.00040313,14]
[359389466,1745973039275,-151.0,0.00040313,14]
[359389467,1745973039284,-151.0,0.00040313,14]
[359389468,1745973039293,-295.035174,0.00040313,14]
[359389469,1745973039303,-151.0,0.00040313,14]
[359389470,1745973039312,-182.727176,0.00040313,14]
[359389471,1745973039322,-156.662656,0.00040313,14]
[359389472,1745973039331,-156.662656,0.00040313,14]
[359389473,1745973039341,-156.662656,0.00040313,14]
[359389474,1745973039350,-156.662656,0.00040313,14]
[359389475,1745973039360,-156.662656,0.00040313,14]
[359389476,1745973039372,-156.662656,0.00040313,14]
[359389477,1745973039383,-222.211341,0.00040313,14]
[359389478,1745973039393,-156.662656,0.00040313,14]
[359389479,1745973039403,-156.662656,0.00040313,14]
[359389480,1745973039414,-156.662656,0.00040313,14]
[359389481,1745973039423,-156.662656,0.00040313,14]
[359389482,1745973039433,-156.662656,0.00040313,14]
[359389483,1745973039448,-156.662656,0.00040313,14]
[359389484,1745973039460,-156.662656,0.00040313,14]
[359389485,1745973039470,-156.662656,0.00040313,14]
[359389486,1745973039482,-151.0,0.00040313,14]
[359389487,1745973039493,-151.0,0.00040313,14]
[359389488,1745973039503,-151.0,0.00040313,14]
[359389489,1745973039515,-151.0,0.00040313,14]
[359389490,1745973039525,-151.0,0.00040313,14]
[359389491,1745973039535,-295.361369,0.00040313,14]
[359389492,1745973039546,-151.0,0.00040313,14]
[359389493,1745973039556,-570.615232,0.00040313,14]
[359389494,1745973039565,-570.615232,0.00040313,14]
[359389495,1745973039574,-570.615232,0.00040313,14]
[359389496,1745973039584,-570.615232,0.00040313,14]
[359389497,1745973039593,-570.615232,0.00040313,14]
[359389498,1745973039602,-570.615232,0.00040313,14]
[359389499,1745973039612,-570.615232,0.00040313,14]
[359389500,1745973039621,-570.615232,0.00040313,14]
[359389501,1745973039630,-570.615232,0.00040313,14]
[359389502,1745973039639,-570.615232,0.00040313,14]
[359389503,1745973039649,-570.615232,0.00040313,14]
[359389504,1745973039659,-570.615232,0.00040313,14]
[359389505,1745973039667,-570.615232,0.00040313,14]
[359389506,1745973039677,-570.615232,0.00040313,14]
[359389507,1745973039686,-163.541342,0.00040313,14]
[359389508,1745973039695,-163.541342,0.00040313,14]
[359389509,1745973039705,-163.541342,0.00040313,14]
[359389510,1745973039714,-163.541342,0.00040313,14]
[359389511,1745973039725,-163.541342,0.00040313,14]
[359389512,1745973039737,-163.541342,0.00040313,14]
[359389513,1745973039748,-163.541342,0.00040313,14]
[359389514,1745973039757,-163.541342,0.00040313,14]
[359389515,1745973039767,-163.541342,0.00040313,14]
[359389516,1745973039777,-163.541342,0.00040313,14]
[359389517,1745973039786,-163.541342,0.00040313,14]
[359389518,1745973039796,-163.541342,0.00040313,14]
[359389520,1745973039806,-163.541342,0.00040313,14]
[359389522,1745973039815,-163.541342,0.00040313,14]
[359389524,1745973039825,-151.0,0.00040313,14]
[359389525,1745973039836,-151.0,0.00040313,14]
[359389526,1745973039846,-151.0,0.00040313,14]
[359389527,1745973039855,-151.0,0.00040313,14]
[359389528,1745973039865,-151.0,0.00040313,14]
[359389529,1745973039874,-151.0,0.00040313,14]
[359389530,1745973039883,-151.0,0.00040313,14]
[359389531,1745973039892,-151.0,0.00040313,14]
[359389532,1745973039902,-151.0,0.00040313,14]
[359389533,1745973039911,-175.23386,0.00040313,14]
[359389534,1745973039921,-151.0,0.00040313,14]
[359389535,1745973039930,-256.77597,0.00040313,14]
[359389536,1745973039939,-151.0,0.00040313,14]
[359389537,1745973039949,-151.0,0.00040313,14]
[359389538,1745973039959,-251.54581,0.00040313,14]
[359389539,1745973039968,-30929.44634859,0.00040313,20]
[359389547,1745973040533,-160.0,0.00040135,2]
[359389548,1745973040545,-57854.87247565,0.00040313,20]
[359389588,1745973043593,-87577.94416437,0.00040313,20]
[359389589,1745973043609,-5282.19915725,0.00040313,20]
[359389628,1745973046171,-151.0,0.0004024,2]
[359389629,1745973046183,-151.0,0.00040313,2]
[359389630,1745973046193,-21487.29388128,0.00040313,20]
[359389632,1745973046375,-4216.61081902,0.00040313,20]
[359389643,1745973192027,151.0,0.0001801,2]
[359389662,1745974027091,-744.82569589,0.000349,120]
[359389663,1745974027112,-556.89154,0.00035,12]
[359389664,1745974044076,-166.44846,0.00035,12]
[359389665,1745974044099,-24.55530178,0.000361,2]
[359389671,1745974158112,-357.34,0.000361,2]
[359389682,1745974211461,250.921,0.00033788,2]
[359389701,1745974232206,-500.0,0.00037325,2]
[359389702,1745974232215,-207.48,0.00037327,2]
[359389703,1745974232227,-1613.3806175,0.00037327,2]
[359389704,1745974232236,-549.5,0.000374,3]
[359389705,1745974232246,-500.0,0.00037403,7]
[359389706,1745974232255,-184.573315,0.00037445,2]
[359389707,1745974232265,-500.0,0.00037516,7]
[359389708,1745974232274,-550.0,0.000376,2]
[359389709,1745974232284,-500.0,0.000376,5]
[359389710,1745974232293,-500.0,0.00037764,7]
[359389711,1745974232302,-750.0,0.0003778,2]
[359389712,1745974232312,-538.0683399,0.00037878,3]
[359389714,1745974232322,-181.64918223,0.00037933,5]
[359389716,1745974232342,-318.35081777,0.00037933,5]
[359389718,1745974232351,-500.0,0.00037933,5]
[359389720,1745974232361,-160.0,0.00038073,2]
[359389722,1745974232371,-160.0,0.00038073,2]
[359389724,1745974232380,-840.73483787,0.00038073,2]
[359389726,1745974232390,-5000.0,0.00038155,2]
[359389728,1745974232399,-500.0,0.00038271,7]
[359389730,1745974232408,-360.915,0.00038284,51]
[359389732,1745974232418,-907.2542876,0.00038297,4]
[359389734,1745974232429,-166.51772733,0.00038356,2]
[359389736,1745974232439,-500.0,0.00038432,7]
[359389738,1745974232449,-500.0,0.0003848,7]
[359389740,1745974232458,-500.0,0.00038608,7]
[359389742,1745974232467,-500.0,0.00038653,7]
[359389745,1745974232476,-500.0,0.00038676,7]
[359389748,1745974232485,-150.5,0.0003889,2]
[359389750,1745974232495,-932.68693305,0.00039014,7]
[359389752,1745974232505,-500.0,0.00039292,7]
[359389754,1745974232514,-930.11226036,0.0003931,7]
[359389756,1745974232524,-940.0,0.000394,24]
[359389758,1745974232534,-314.4653252,0.00039479,30]
[359389760,1745974232557,-1133.3010594,0.00039479,30]
[359389762,1745974232569,-160.1296845,0.00039479,30]
[359389765,1745974232580,-153.0,0.00039479,30]
[359389766,1745974232589,-153.0,0.00039479,30]
[359389768,1745974232599,-153.0,0.00039479,30]
[359389771,1745974232616,-500.0,0.00039726,5]
[359389773,1745974232631,-421.28334683,0.00039741,2]
[359389774,1745974232643,-201.4580932,0.00039753,30]
[359389775,1745974232654,-153.0,0.00039753,30]
[359389776,1745974232664,-219.0,0.0004,120]
[359389777,1745974232674,-1325.38608982,0.0004,2]
[359389778,1745974232684,-398.76475978,0.0004,2]
[359389779,1745974232693,-398.76475975,0.00040031,28]
[359389780,1745974232703,-631.28,0.00040036,120]
[359389781,1745974232713,-398.76475975,0.00040063,28]
[359389782,1745974232724,-398.76475975,0.00040094,28]
[359389783,1745974232734,-151.0,0.000401,19]
[359389784,1745974232743,-151.31679888,0.000401,19]
[359389785,1745974232754,-177.38,0.000401,31]
[359389786,1745974232763,-177.38,0.000401,31]
[359389787,1745974232774,-177.38,0.000401,31]
[359389788,1745974232783,-177.38,0.000401,31]
[359389789,1745974232793,-398.76475975,0.00040125,28]
[359389790,1745974232803,-398.76475975,0.00040156,28]
[359389791,1745974232813,-398.76475975,0.00040188,28]
[359389792,1745974232823,-4671.45266315,0.0004019,3]
[359389793,1745974232833,-500.0,0.00040199,2]
[359389794,1745974232843,-500.0,0.00040199,2]
[359389795,1745974232853,-500.0,0.00040199,2]
[359389796,1745974232863,-303.15016279,0.00040199,2]
[359389797,1745974232875,-500.0,0.00040199,2]
[359389798,1745974232887,-500.0,0.00040199,2]
[359389799,1745974232897,-500.0,0.00040199,2]
[359389800,1745974232907,-500.0,0.00040199,31]
[359389801,1745974232917,-500.0,0.00040199,31]
[359389802,1745974232928,-500.0,0.00040199,31]
[359389803,1745974232937,-500.0,0.00040199,2]
[359389804,1745974232947,-215.65861379,0.00040199,2]
[359389805,1745974232957,-202.13261,0.000402,2]
[359389806,1745974232967,-267.46,0.00040219,120]
[359389807,1745974232976,-155.66268724,0.00040219,120]
[359389808,1745974232986,-155.66268724,0.00040219,120]
[359389809,1745974232995,-155.66268724,0.00040219,120]
[359389810,1745974233005,-155.66,0.00040219,120]
[359389811,1745974233014,-161.42797195,0.00040219,120]
[359389812,1745974233024,-161.42797195,0.00040219,120]
[359389813,1745974233034,-161.42797195,0.00040219,120]
[359389814,1745974233044,-161.42797195,0.00040219,120]
[359389815,1745974233053,-161.42797195,0.00040219,120]
[359389816,1745974233064,-161.42797195,0.00040219,120]
[359389817,1745974233074,-161.42797195,0.00040219,120]
[359389818,1745974233084,-161.42797195,0.00040219,120]
[359389819,1745974233095,-161.42,0.00040219,120]
[359389820,1745974233106,-2295.34461914,0.00040219,120]
[359389821,1745974233117,-398.76475975,0.00040219,28]
[359389822,1745974233127,-631.28,0.00040236,120]
[359389823,1745974233138,-500.0,0.00040242,15]
[359389824,1745974233148,-1208.66,0.000403,30]
[359389825,1745974233158,-160.0,0.000403,62]
[359389826,1745974233169,-1256.65889704,0.000403,26]
[359389827,1745974233198,-88.58932742,0.000403,26]
[359389828,1745974234989,321.61,0.000361,2]
[359389829,1745974237643,150.078,0.00033788,2]
[359389831,1745974237806,167.192,0.00033788,2]
[359389832,1745974237914,250.0,0.00033788,2]
[359389856,1745974238355,-160.0,0.00038078,2]
[359389857,1745974238366,-654.75177554,0.000403,26]
[359389858,1745974238376,-160.0,0.00040307,5]
[359389859,1745974238385,-160.0,0.00040309,3]
[359389860,1745974238395,-4671.45266315,0.00040309,3]
[359389861,1745974238404,-151.0,0.0004031,14]
[359389862,1745974238414,-151.0,0.0004031,14]
[359389863,1745974238424,-151.0,0.0004031,14]
[359389864,1745974238433,-151.0,0.0004031,14]
[359389865,1745974238443,-152.70466546,0.00040313,20]
[359389866,1745974238452,-151.0,0.00040313,20]
[359389867,1745974238462,-151.0,0.00040313,20]
[359389868,1745974238471,-151.0,0.00040313,20]
[359389869,1745974238481,-216.40397567,0.00040318,31]
[359389870,1745974238490,-281.73070917,0.00040318,31]
[359389871,1745974238500,-500.0,0.00040318,31]
[359389872,1745974238509,-396.81952194,0.00040318,7]
[359389873,1745974238518,-157.37165472,0.00040318,31]
[359389874,1745974238528,-301.2,0.00040318,31]
[359389875,1745974238537,-500.0,0.00040318,31]
[359389876,1745974238547,-202.8,0.00040318,31]
[359389877,1745974238556,-303.47265412,0.00040318,31]
[359389878,1745974238566,-3178.70411016,0.00040318,10]
[359389879,1745974238576,-65308.50743906,0.00040318,14]
[359389880,1745974238586,-641.32775989,0.00040319,2]
[359389881,1745974238595,-37524.14848736,0.00040319,3]
[359389882,1745974238605,-8687.89956978,0.00040319,20]
[359389883,1745974238654,-120.09700716,0.00040319,20]
[359389894,1745974240670,-150.0,0.00036788,2]
[359389896,1745974240680,-290.52116,0.00040319,20]
[359389912,1745974243391,-44562.82880222,0.00040319,20]
[359389913,1745974243402,-2105.05000575,0.00040319,20]
[359389924,1745974246639,-144.63524843,0.00038303,4]
[359389925,1745974246750,-581.16818167,0.00038303,4]
[359389926,1745974246762,-930.91769675,0.00040319,20]
[359389927,1745974280454,213.197,0.00033789,2]
[359389933,1745974685107,300.0,0.00025,120]
[359389936,1745974988118,-151.0,0.00018585,2]
[359389941,1745975235116,-403.0,0.00032705,2]
[359389942,1745975235136,-160.0,0.00033779,2]
[359389943,1745975235157,-160.0,0.00033784,2]
[359389944,1745975235177,-1600.0,0.00033788,3]
[359389945,1745975235195,-160.0,0.00033788,2]
[359389946,1745975235216,-38.15313096,0.00033789,2]
[359389947,1745975236130,-506.84686904,0.00033789,2]
[359389948,1745975236154,-2217.0,0.00033789,2]
[359389949,1745975236174,-569.1811189,0.00033789,2]
[359389950,1745975250104,-136.8188811,0.00033789,2]
[359389951,1745975250125,-243.3711531,0.00034594,2]
[359389952,1745975250145,-256.231592,0.00034594,120]
[359389953,1745975250165,-152.0,0.00035322,2]
[359389954,1745975250184,-92.85671956,0.00035705,2]
[359389961,1745975349129,-310.14328044,0.00035705,2]
[359389962,1745975349169,-932.68693305,0.00036097,7]
[359389986,1745975432544,-289.45,0.000362,2]
[359389987,1745975432555,-186.19662745,0.000362,120]
[359389988,1745975432566,-192.39569023,0.00036253,2]
[359390042,1745975438452,-9.77794377,0.00036253,2]
[359390044,1745975438462,-160.0,0.00036774,2]
[359390046,1745975438473,-300.0,0.00036777,2]
[359390048,1745975438484,-428.0,0.00036777,3]
[359390050,1745975438494,-2280.6664797,0.00036778,2]
[359390052,1745975438504,-500.0,0.00036822,7]
[359390055,1745975438515,-2332.1961619,0.00036839,2]
[359390057,1745975438525,-4263.70684823,0.00037333,2]
[359390059,1745975438540,-295.79446057,0.00037333,2]
[359390061,1745975438551,-500.0,0.0003774,7]
[359390063,1745975438561,-151.0,0.00038302,4]
[359390065,1745975438570,-580.6427441,0.00038303,4]
[359390067,1745975438579,-1326.06,0.00038356,120]
[359390069,1745975438589,-161.05862689,0.00038356,2]
[359390071,1745975438598,-731.73294529,0.00039215,7]
[359390073,1745975438607,-163.402257,0.000396,60]
[359390075,1745975438617,-333.974,0.00039726,55]
[359390077,1745975438626,-500.0,0.00039726,5]
[359390079,1745975438637,-500.0,0.0004,120]
[359390081,1745975438647,-207.4,0.00040218,28]
[359390083,1745975438658,-215.0738,0.00040218,28]
[359390085,1745975438667,-223.0315306,0.00040218,28]
[359390087,1745975438677,-231.28369723,0.00040218,28]
[359390089,1745975438687,-239.84119403,0.00040218,28]
[359390092,1745975438696,-192.71899785,0.00040218,28]
[359390094,1745975438705,-421.1409203,0.00040218,2]
[359390095,1745975438715,-160.0,0.00040218,2]
[359390098,1745975438724,-160.0,0.00040224,2]
[359390100,1745975438734,-3991.76070398,0.00040249,2]
[359390102,1745975438743,-500.0,0.00040284,15]
[359390104,1745975438752,-160.0,0.000403,62]